Workbook

Sheet Sheet1
A1: rate | B1: 0.0463
A2: principle | B2: 150000
A3: period | B3: 25
A5: Payments for a loan
A6: payment | B6: =PMT(B1/12,B3*12,B2) -> -844.8555168 | C6: =GetFormula(B6) -> =PMT(B1/12,B3*12,B2)
A8: Total interest payment
A9: total payment | B9: =B3*12*B6 -> -253456.655 | C9: =GetFormula(B9) -> =B3*12*B6
A11: principle | B11: =B2 -> 150000 | C11: =GetFormula(B11) -> =B2
A12: priciple per month | B12: =-B11/B3/12 -> -500 | C12: =GetFormula(B12) -> =-B11/B3/12
A14: total interest v1 | B14: =B9+B11 -> -103456.655 | C14: =GetFormula(B14) -> =B9+B11
A15: total interest per month v1 | B15: =B6-B12 -> -344.8555168 | C15: =GetFormula(B15) -> =B6-B12
A17: total interest v2 | B17: =CUMIPMT(B1/12,B3*12,B2,1,B3*12,0) -> -103456.655 | C17: =GetFormula(B17) -> =CUMIPMT(B1/12,B3*12,B2,1,B3*12,0)
A18: total interest per month v2 | B18: =B17/B3/12 -> -344.8555168 | C18: =GetFormula(B18) -> =B17/B3/12
A20: Additional fees
A21: work out the interest rate
A22: total interest | B22: =B17 -> -103456.655 | C22: =GetFormula(B22) -> =B17
A24: additional fees | B24: =25*-395 -> -9875 | C24: =GetFormula(B24) -> =25*-395
A25: additional fees per month | B25: =B24/B3/12 -> -32.91666667 | C25: =GetFormula(B25) -> =B24/B3/12
A27: total outgoings | B27: =-B2+B22+B24 -> -263331.655 | C27: =GetFormula(B27) -> =-B2+B22+B24
A28: total outgoings per month | B28: =B27/B3/12 -> -877.7721835 | C28: =GetFormula(B28) -> =B27/B3/12
A30: total outgoings
A31: principle | B31: =B2 -> 150000 | C31: =GetFormula(B31) -> =B2
A32: total interest plus fees per month | B32: =B28 -> -877.7721835 | C32: =GetFormula(B32) -> =B28
A34: Comparison rate
A35: comparison rate | B35: =RATE(B3*12,B32,B31)*12 -> 0.0501014822 | C35: =GetFormula(B35) -> =RATE(B3*12,B32,B31)*12

Sheet Sheet2

Sheet Sheet3
